bitfinex-derivatives/quotes_SOLF0:USTF0_20220106
["timestamp","ask_amount","ask_price","bid_price","bid_amount"]
[1641480868614,4.0,148.77,148.72,16.00992862]
[1641480868817,4.0,148.74,148.73,50.94374823]
[1641480869015,9.86,148.74,148.68,94.81046297]
[1641480869218,27.66479,148.72,148.68,94.81046297]
[1641480869416,27.66479,148.72,148.69,7.01400711]
[1641480869816,31.66479,148.72,148.69,7.01400711]
[1641480870016,27.66479,148.72,148.69,7.01400711]
[1641480870618,31.66479,148.72,148.69,7.01400711]
[1641480870819,27.66479,148.72,148.62,27.66479]
[1641480871018,4.0,148.7,148.62,27.66479]
[1641480871218,6.781,148.7,148.62,27.66479]
[1641480872119,10.781,148.7,148.62,27.66479]
[1641480872325,4.0,148.65,148.59,27.66479]
[1641480872519,5.553,148.65,148.57,15.9934675]
[1641480873118,5.553,148.65,148.54,4.0]
[1641480873119,37.21779,148.65,148.56,27.66479]
[1641480873819,33.21779,148.65,148.56,27.66479]
[1641480874018,37.21779,148.65,148.56,27.66479]
[1641480874420,5.553,148.65,148.6,4.0]
[1641480874619,27.66479,148.72,148.59,4.0]
[1641480874819,27.66479,148.72,148.63,4.0]
[1641480875021,68.7932,148.77,148.59,4.0]
[1641480875221,27.66479,148.75,148.63,27.66479]
[1641480876021,4.0,148.71,148.61,27.66479]
[1641480876221,4.0,148.69,148.61,27.66479]
[1641480876423,4.0,148.68,148.57,67.7506]
[1641480876621,9.239,148.68,148.57,67.7506]
[1641480876821,4.0,148.66,148.57,67.7506]
[1641480877021,4.0,148.66,148.52,4.0]
[1641480877221,4.0,148.66,148.56,27.66479]
[1641480877222,27.66479,148.66,148.56,27.66479]
[1641480877423,27.66479,148.66,148.56,31.66479]
[1641480877624,27.66479,148.66,148.56,27.66479]
[1641480878426,32.90379,148.68,148.56,27.66479]
[1641480878627,5.239,148.68,148.62,4.0]
[1641480879027,7.056,148.71,148.62,4.0]
[1641480879226,7.056,148.71,148.64,27.66479]
[1641480879627,27.66479,148.76,148.64,31.66479]
[1641480879827,4.0,148.81,148.64,27.66479]
[1641480880027,57.10547309,148.82,148.64,27.66479]
[1641480880327,61.10547309,148.82,148.64,27.66479]
[1641480880530,4.0,148.79,148.64,27.66479]
[1641480880729,9.69,148.79,148.64,27.66479]
[1641480880930,5.69,148.79,148.64,27.66479]
[1641480881131,27.66479,148.78,148.67,27.66479]
[1641480882833,27.66479,148.78,148.67,31.66479]
[1641480883134,27.66479,148.78,148.67,59.32958]
[1641480883336,34.34479,148.78,148.67,55.32958]
[1641480883534,4.0,148.76,148.67,27.66479]
[1641480883733,4.0,148.76,148.63,123.50767309]
[1641480883934,4.0,148.77,148.63,123.50767309]
[1641480884334,4.0,148.75,148.64,11.4537692]
[1641480884533,10.032,148.75,148.64,11.4537692]
[1641480884734,6.032,148.75,148.64,11.4537692]
[1641480885134,6.032,148.75,148.67,27.66479]
[1641480885534,27.66479,148.78,148.67,27.66479]
[1641480885735,27.66479,148.78,148.67,31.66479]
[1641480885934,57.10547309,148.81,148.69,4.0]
[1641480886134,64.4153,148.83,148.69,4.0]
[1641480886336,4.0,148.82,148.67,27.66479]
[1641480886535,4.0,148.81,148.67,27.66479]
[1641480886936,4.0,148.8,148.67,39.1185592]
[1641480887136,27.66479,148.79,148.67,39.1185592]
[1641480887336,4.0,148.78,148.67,39.1185592]
[1641480887738,31.66479,148.79,148.67,27.66479]
[1641480887938,4.0,148.78,148.67,27.66479]
[1641480888137,31.66479,148.79,148.67,27.66479]
[1641480888537,4.0,148.77,148.67,27.66479]
[1641480888738,4.422,148.77,148.68,7.00916937]
[1641480889939,4.422,148.77,148.68,21.28355254]
[1641480890142,14.27438317,148.75,148.68,21.28355254]
[1641480890341,18.27438317,148.75,148.68,21.28355254]
[1641480890541,4.0,148.7,148.68,21.28355254]
[1641480890740,5.892,148.7,148.68,3.66228706]
[1641480890943,9.892,148.7,148.67,8.03900189]
[1641480891140,27.66479,148.68,148.67,8.03900189]
[1641480892040,27.66479,148.68,148.64,38.06421607]
[1641480892240,27.66479,148.68,148.58,49.51623094]
[1641480894142,3.32289186,148.67,148.58,50.95347505]
[1641480894344,10.18089186,148.67,148.58,50.95347505]
[1641480894645,10.18089186,148.67,148.59,4.0]
[1641480894843,6.858,148.67,148.59,4.0]
[1641480895044,6.858,148.67,148.59,42.06421607]
[1641480895244,6.858,148.67,148.6,27.66479]
[1641480895444,27.66479,148.7,148.6,27.66479]
[1641480895644,27.66479,148.73,148.6,27.66479]
[1641480895844,27.66479,148.73,148.61,1.43724411]
[1641480896046,101.72521607,148.75,148.61,1.43724411]
[1641480896846,3.32127318,148.74,148.63,38.06421607]
[1641480897246,3.32127318,148.74,148.64,27.66479]
[1641480897848,3.32127318,148.74,148.65,1.43724411]
[1641480899450,27.66479,148.73,148.65,1.43724411]
[1641480899849,33.80379,148.73,148.65,1.43724411]
[1641480900453,4.0,148.68,148.65,1.43724411]
[1641480900655,5.65,148.68,148.65,1.43724411]
[1641480901457,33.31479,148.68,148.63,38.06421607]
[1641480901654,3.32127318,148.67,148.57,65.72900607]
[1641480902254,3.32127318,148.67,148.58,4.0]
[1641480902454,3.32127318,148.67,148.58,1.43724411]
[1641480902855,3.32127318,148.67,148.58,5.43724411]
[1641480903256,71.86800607,148.73,148.59,38.06421607]
[1641480903456,71.86800607,148.73,148.63,27.66479]
[1641480904055,3.32181002,148.72,148.64,1.43724411]
[1641480904956,7.32181002,148.72,148.64,1.43724411]
[1641480905155,3.32181002,148.72,148.64,1.43724411]
[1641480905757,3.32181002,148.71,148.67,4.75961354]
[1641480906558,3.32181002,148.72,148.67,4.75961354]
[1641480908759,38.06421607,148.77,148.7,4.75961354]
[1641480909760,69.05081609,148.79,148.72,4.75961354]
[1641480910762,41.38602609,148.79,148.72,4.75961354]
[1641480910960,41.38602609,148.79,148.72,10.10261354]
[1641480911366,41.38602609,148.79,148.76,27.66479]
[1641480911566,3.32181002,148.78,148.76,27.66479]
[1641480911762,15.34858137,148.78,148.76,27.66479]
[1641480912263,8.137e-05,148.78,148.76,27.66479]
[1641480912661,38.06421607,148.79,148.76,27.66479]
[1641480912862,27.66479,148.85,148.76,27.66479]
[1641480913062,38.04746273,148.86,148.76,27.66479]
[1641480913262,38.04746273,148.86,148.79,4.0]
[1641480913464,38.04746273,148.86,148.8,27.66479]
[1641480913864,57.10547309,148.9,148.81,4.75495466]
[1641480914066,17.07243995,148.9,148.81,4.75495466]
[1641480914865,91.16059,148.91,148.81,4.75495466]
[1641480915065,91.16059,148.91,148.82,4.75495466]
[1641480916065,95.16059,148.91,148.82,4.75495466]
[1641480916567,91.16059,148.91,148.82,4.75495466]
[1641480916766,17.07559075,148.9,148.8,55.32958]
[1641480917466,27.66479,148.88,148.8,55.32958]
[1641480917868,27.66479,148.88,148.8,60.08453466]
[1641480918067,17.07559075,148.9,148.82,4.0]
[1641480918265,17.07559075,148.9,148.82,5.232]
[1641480918667,17.07559075,148.9,148.82,9.232]
[1641480918867,27.66479,148.91,148.82,5.232]
[1641480919066,27.66479,148.91,148.84,4.75427172]
[1641480919866,31.66479,148.91,148.8,55.32958]
[1641480920067,4.0,148.9,148.82,4.75484886]
[1641480920269,4.0,148.89,148.82,4.75484886]
[1641480920568,38.64579,148.91,148.82,4.75484886]
[1641480920768,34.64579,148.91,148.82,4.75484886]
[1641480920967,21.07190042,148.9,148.79,4.75579645]
[1641480921167,17.07190042,148.9,148.79,4.75579645]
[1641480921470,27.66479,148.88,148.8,27.66479]
[1641480922072,4.75514006,148.82,148.81,4.75514006]
[1641480922270,10.01814006,148.82,148.81,4.75514006]
[1641480922870,5.263,148.82,148.78,14.26542019]
[1641480923069,5.263,148.82,148.77,27.66479]
[1641480923070,5.263,148.82,148.79,4.75557208]
[1641480923972,4.75412322,148.8,148.77,31.66479]
[1641480924171,4.75412322,148.8,148.77,27.66479]
[1641480924772,14.26542019,148.83,148.77,27.66479]
[1641480924974,4.75346699,148.82,148.78,14.26542019]
[1641480925574,4.75346699,148.82,148.8,27.66479]
[1641480925774,14.26542019,148.85,148.8,27.66479]
[1641480925974,4.7533131,148.83,148.8,27.66479]
[1641480926774,14.26542019,148.87,148.82,4.75305322]
[1641480927777,4.75265093,148.85,148.84,4.75265093]
[1641480928678,4.919,148.86,148.83,4.7529333]
[1641480929482,4.75300059,148.84,148.8,41.93021019]
[1641480929977,4.75300059,148.84,148.82,4.0]
[1641480930179,446.0,148.93,148.83,4.0]
[1641480930783,446.0,148.93,148.81,5.656]
[1641480930981,446.0,148.93,148.83,4.0]
[1641480931482,446.0,148.93,148.86,27.66479]
[1641480932084,446.0,148.93,148.87,4.0]
[1641480932283,446.0,148.93,148.86,24.06184542]
[1641480932884,27.66479,148.96,148.86,24.06184542]
[1641480933285,4.0,148.93,148.86,24.06184542]
[1641480933786,11.98636481,148.95,148.86,24.06184542]
[1641480935487,49.99552473,148.98,148.91,27.66479]
[1641480935888,4.0,148.96,148.91,27.66479]
[1641480936087,6.24,148.96,148.91,27.66479]
[1641480937189,4.0,148.95,148.91,27.66479]
[1641480937989,6.24,148.96,148.91,27.66479]
[1641480938389,4.0,148.94,148.91,27.66479]
[1641480938589,4.0,148.92,148.91,27.66479]
[1641480938790,8.789,148.92,148.86,24.06184542]
[1641480938991,4.789,148.92,148.86,24.06184542]
[1641480940193,4.0,148.91,148.86,24.06184542]
[1641480940393,4.789,148.92,148.86,24.06184542]
[1641480940594,49.99552473,148.95,148.86,24.06184542]
[1641480941494,38.00915992,148.95,148.86,24.06184542]
[1641480941693,38.00915992,148.98,148.9,27.66479]
[1641480941994,4.0,148.95,148.9,27.66479]
[1641480942196,4.0,148.93,148.86,31.07998146]
[1641480942395,5.801,148.95,148.86,31.07998146]
[1641480942594,4.0,148.9,148.86,24.06184542]
[1641480942794,6.836,148.9,148.86,24.06184542]
[1641480942994,6.836,148.9,148.82,103.04935992]
[1641480943196,4.0,148.88,148.82,38.00915992]
[1641480943594,4.0,148.88,148.82,65.67394992]
[1641480943893,6.836,148.9,148.82,65.67394992]
[1641480943894,6.836,148.9,148.82,27.66479]
[1641480944094,4.0,148.88,148.82,27.66479]
[1641480944694,6.836,148.9,148.82,27.66479]
[1641480944894,4.0,148.89,148.82,27.66479]
[1641480945095,11.98583316,148.9,148.82,27.66479]
[1641480945294,15.98583316,148.9,148.82,27.66479]
[1641480945494,11.98583316,148.9,148.82,27.66479]
[1641480946195,4.0,148.88,148.82,27.66479]
[1641480946398,15.98583316,148.9,148.82,27.66479]
[1641480946596,4.0,148.89,148.82,27.66479]
[1641480946797,15.98583316,148.9,148.82,27.66479]
[1641480946996,11.98583316,148.9,148.82,27.66479]
[1641480947398,38.00915992,148.93,148.82,27.66479]
[1641480947600,4.0,148.92,148.86,27.66479]
[1641480948900,11.98759503,148.93,148.86,27.66479]
[1641480949600,15.98759503,148.93,148.86,55.32958]
[1641480949800,11.98759503,148.93,148.86,55.32958]
[1641480950204,450.0,148.94,148.86,55.32958]
[1641480950702,446.0,148.94,148.86,55.32958]
[1641480950900,511.67394992,148.96,148.86,55.32958]
[1641480951301,4.0,148.95,148.86,55.32958]
[1641480951702,473.66479,148.96,148.86,55.32958]
[1641480952001,446.0,148.96,148.86,55.32958]
[1641480953603,446.0,148.96,148.91,27.66479]
[1641480957410,434.5204,148.96,148.91,27.66479]
[1641480957611,337.8726,148.96,148.91,27.66479]
[1641480957814,38.00915992,149.04,148.95,27.66479]
[1641480958012,5.82915992,149.04,148.95,34.80179]
[1641480958212,63.5895,149.05,148.95,34.80179]
[1641480958812,63.5895,149.05,148.95,105.80179]
[1641480959213,65.6539,149.06,148.95,105.80179]
[1641480959613,15.27062101,149.04,148.96,1.4343063]
[1641480959913,15.27062101,149.04,149.01,27.66479]
[1641480960515,14.24432199,149.02,148.96,1.4343063]
[1641480961714,14.24432199,149.02,149.01,55.32958]
[1641480961916,15.27062101,149.05,149.01,61.59858]
[1641480962318,11.9691956,149.05,149.01,61.59858]
[1641480962519,11.9691956,149.07,149.01,63.0328863]
[1641480962920,11.9691956,149.07,149.01,56.7638863]
[1641480963620,4.0,149.04,149.01,29.0990963]
[1641480963821,4.0,149.02,149.01,1.4343063]
[1641480964423,6.125,149.04,149.01,1.4343063]
[1641480964624,6.125,149.04,148.98,27.66479]
[1641480964625,4.0,149.02,148.98,27.66479]
[1641480965024,7.29989857,149.03,148.98,27.66479]
[1641480965426,3.29989857,149.01,148.98,27.66479]
[1641480965623,8.68189857,149.01,148.98,27.66479]
[1641480965823,8.68189857,149.01,148.95,98.66479]
[1641480966225,4.0,148.96,148.95,71.0]
[1641480966426,10.883,148.96,148.95,71.0]
[1641480966626,10.883,148.96,148.85,57.10547309]
[1641480966827,6.883,148.96,148.85,57.10547309]
[1641480967026,4.0,148.94,148.85,57.10547309]
[1641480967529,4.0,148.94,148.86,1.44722155]
[1641480967726,3.29989857,148.95,148.9,27.66479]
[1641480968427,7.29989857,148.95,148.9,27.66479]
[1641480968727,3.29989857,148.95,148.91,1.44722155]
[1641480969931,3.29989857,148.96,148.91,1.44722155]
[1641480970933,3.29989857,148.99,148.91,8.47301773]
[1641480971133,7.29989857,148.99,148.91,8.47301773]
[1641480971336,3.29989857,148.99,148.91,8.47301773]
[1641480971734,4.0,148.98,148.91,8.47301773]
[1641480971940,9.458,148.98,148.93,27.66479]
[1641480972535,4.0,148.94,148.91,8.47301773]
[1641480972736,4.0,148.92,148.91,8.47301773]
[1641480972935,4.0,148.92,148.82,57.10547309]
[1641480973237,5.74,148.94,148.82,57.10547309]
[1641480973438,4.0,148.9,148.82,57.10547309]
[1641480973637,11.23,148.9,148.82,57.10547309]
[1641480973837,11.23,148.9,148.84,27.66479]
[1641480974037,7.23,148.9,148.84,27.66479]
[1641480974238,11.23,148.9,148.84,27.66479]
[1641480974538,7.23,148.9,148.84,27.66479]
[1641480975140,7.23,148.9,148.85,8.47284103]
[1641480976942,4.0,148.87,148.85,8.47284103]
[1641480977141,6.777,148.87,148.85,8.47284103]
[1641480977342,10.777,148.87,148.85,8.47284103]
[1641480977743,4.0,148.86,148.85,8.47284103]
[1641480977942,4.0,148.86,148.85,1.44677355]
[1641480978142,4.0,148.86,148.83,1.44677355]
[1641480978544,4.0,148.84,148.83,1.44677355]
[1641480978745,8.568,148.84,148.78,27.66479]
[1641480978943,4.568,148.84,148.75,3.80304239]
[1641480979144,4.0,148.8,148.79,7.01941834]
[1641480979343,9.724,148.8,148.79,7.01941834]
[1641480979943,5.724,148.8,148.79,7.01941834]
[1641480980144,9.724,148.8,148.79,7.01941834]
[1641480980345,5.724,148.8,148.79,7.01941834]
[1641480980545,91.12619,148.85,148.75,65.65475641]
[1641480980746,5.366,148.81,148.75,37.98996641]
[1641480980950,4.0,148.77,148.75,37.98996641]
[1641480981147,6.986,148.77,148.75,37.98996641]
[1641480981346,4.0,148.76,148.75,37.98996641]
[1641480981547,4.0,148.76,148.74,7.01941834]
[1641480982046,6.986,148.77,148.74,7.01941834]
[1641480982246,4.0,148.75,148.74,7.01941834]
[1641480983650,4.0,148.75,148.74,1.834e-05]
[1641480984246,4.0,148.75,148.71,11.45820546]
[1641480984448,6.986,148.77,148.7,27.66479]
[1641480984647,4.0,148.72,148.7,27.66479]
[1641480984848,4.0,148.71,148.7,27.66479]
[1641480985049,9.727,148.72,148.7,27.66479]
[1641480985250,4.0,148.71,148.7,27.66479]
[1641480985451,5.727,148.72,148.7,27.66479]
[1641480985954,8.0,148.71,148.68,27.66479]
[1641480986251,4.0,148.69,148.64,27.66479]
[1641480986451,5.945,148.69,148.64,27.66479]
[1641480986851,4.0,148.65,148.64,27.66479]
[1641480987053,6.417,148.65,148.64,27.66479]
[1641480988053,9.727,148.72,148.64,55.32958]
[1641480988254,4.0,148.72,148.64,55.32958]
[1641480989058,4.0,148.71,148.64,55.32958]
[1641480989254,4.0,148.72,148.64,55.32958]
[1641480989455,7.036,148.74,148.64,55.32958]
[1641480989655,4.0,148.74,148.64,55.32958]
[1641480990056,67.5016,148.75,148.69,27.66479]
[1641480990257,4.0,148.73,148.69,27.66479]
[1641480990456,67.5016,148.75,148.69,27.66479]
[1641480990656,4.0,148.72,148.69,27.66479]
[1641480991057,9.518,148.72,148.69,27.66479]
[1641480991556,5.518,148.72,148.69,27.66479]
[1641480992258,4.0,148.7,148.69,27.66479]
[1641480992456,63.89088604,148.75,148.69,27.66479]
[1641480994258,63.89088604,148.75,148.65,4.67732893]
[1641480994259,4.0,148.7,148.65,4.67732893]
[1641480994459,10.464,148.7,148.65,4.67732893]
[1641480995261,6.464,148.7,148.65,4.67732893]
[1641480995461,6.464,148.7,148.6,4.67732893]
[1641480996059,6.464,148.7,148.62,27.66479]
[1641480996861,66.9237,148.74,148.62,27.66479]
[1641480997263,62.9237,148.74,148.62,27.66479]
[1641480997462,4.0,148.7,148.62,32.34211893]
[1641480997662,4.0,148.69,148.62,32.34211893]
[1641480997865,4.0,148.69,148.62,4.67732893]
[1641480998465,5.023,148.7,148.62,4.67732893]
[1641480998664,62.9237,148.74,148.62,4.67732893]
[1641480998868,62.9237,148.74,148.65,4.0]
[1641480999065,63.89088604,148.75,148.65,4.0]
[1641480999267,63.89088604,148.75,148.66,4.0]
[1641481000070,63.89088604,148.75,148.69,27.66479]
[1641481001770,67.89088604,148.75,148.69,27.66479]
[1641481002171,95.55567604,148.75,148.67,27.66479]
[1641481002370,4.0,148.73,148.67,27.66479]
[1641481002571,4.0,148.71,148.63,32.34211893]
[1641481002771,5.97,148.71,148.63,32.34211893]
[1641481003172,5.97,148.71,148.63,27.66479]
[1641481003373,9.97,148.71,148.63,27.66479]
[1641481003774,5.97,148.71,148.63,27.66479]
[1641481003973,4.0,148.69,148.61,4.67732893]
[1641481004173,31.66479,148.67,148.61,4.67732893]
[1641481004376,34.82179,148.67,148.61,4.67732893]
[1641481004975,7.157,148.67,148.61,4.67732893]
[1641481005173,64.797,148.74,148.6,4.0]
[1641481005374,64.797,148.74,148.6,9.495]
[1641481005675,64.797,148.74,148.61,4.0]
[1641481005881,4.0,148.73,148.59,4.0]
[1641481006077,31.66479,148.72,148.61,27.66479]
[1641481006377,4.0,148.71,148.68,14.03272278]
[1641481006777,10.202,148.71,148.68,14.03272278]
[1641481006978,10.202,148.71,148.68,2.278e-05]
[1641481007178,4.0,148.7,148.63,37.98996641]
[1641481007380,14.87932893,148.71,148.63,37.98996641]
[1641481007779,4.0,148.66,148.63,37.98996641]
[1641481007979,6.568,148.66,148.62,7.02414742]
[1641481008179,27.66479,148.65,148.64,7.02414742]
[1641481008379,6.568,148.66,148.64,7.02414742]
[1641481008779,6.568,148.66,148.62,11.47044285]
[1641481009181,6.568,148.66,148.58,7.01795205]
[1641481009980,8.67732893,148.69,148.58,7.01795205]
[1641481009981,68.3182,148.68,148.58,7.01795205]
[1641481010183,72.99552893,148.68,148.58,7.01795205]
[1641481011285,68.3182,148.68,148.58,7.01795205]
[1641481012185,68.3182,148.68,148.61,4.0]
[1641481012385,68.3182,148.68,148.6,27.66479]
[1641481015088,72.99552893,148.68,148.6,27.66479]
[1641481015987,79.07452893,148.68,148.6,27.66479]
[1641481016188,74.3972,148.68,148.6,27.66479]
[1641481016990,6.079,148.68,148.62,4.0]
[1641481017191,4.67732893,148.7,148.62,4.0]
[1641481017390,4.67732893,148.7,148.6,27.66479]
[1641481017993,32.34211893,148.72,148.6,84.77026309]
[1641481018194,4.67732893,148.72,148.64,27.66479]
[1641481018596,8.67732893,148.72,148.64,27.66479]
[1641481018796,4.67732893,148.71,148.64,27.66479]
[1641481019096,4.0,148.68,148.64,27.66479]
[1641481019297,10.479,148.68,148.64,27.66479]
[1641481019797,10.479,148.68,148.65,1.44080594]
[1641481020898,6.479,148.68,148.65,1.44080594]
[1641481021296,4.67732893,148.7,148.67,4.0]
[1641481021496,57.10547309,148.81,148.69,4.0]
[1641481022196,27.66479,148.83,148.72,27.66479]
[1641481022697,4.0,148.82,148.72,27.66479]
[1641481022896,4.0,148.81,148.72,27.66479]
[1641481023096,4.0,148.8,148.73,1.44080594]
[1641481023296,10.046,148.8,148.73,1.44080594]
[1641481023797,6.046,148.8,148.73,1.44080594]
[1641481023996,3.31426934,148.79,148.71,1.44080594]
[1641481026298,3.31426934,148.79,148.76,27.66479]
[1641481026497,3.31426934,148.79,148.76,33.98479]
[1641481027096,3.31426934,148.79,148.76,6.32]
[1641481027299,4.0,148.82,148.71,1.44080594]
[1641481027498,5.325,148.79,148.77,1.44080594]
[1641481028099,9.325,148.79,148.77,5.94e-06]
[1641481028300,27.66479,148.78,148.71,11.45835529]
[1641481028702,27.66479,148.78,148.7,65.71297149]
[1641481029502,31.66479,148.78,148.7,65.71297149]
[1641481029804,31.66479,148.78,148.71,7.01487718]
[1641481030002,27.66479,148.78,148.71,7.01487718]
[1641481033304,31.66479,148.78,148.71,7.01487718]
[1641481033504,4.0,148.72,148.71,7.01487718]
[1641481033705,10.902,148.72,148.68,49.50736969]
[1641481034105,4.0,148.71,148.68,49.50736969]
[1641481034306,10.902,148.72,148.68,49.50736969]
[1641481034505,4.0,148.7,148.68,49.50736969]
[1641481035108,4.0,148.7,148.62,38.04818149]
[1641481035507,31.66479,148.71,148.62,38.04818149]
[1641481035707,27.66479,148.71,148.62,38.04818149]
[1641481035907,104.66828149,148.76,148.64,4.0]
[1641481036107,104.66828149,148.76,148.65,4.0]
[1641481036507,104.66828149,148.76,148.69,27.66479]
[1641481036707,104.66828149,148.76,148.69,32.70179]
[1641481037308,66.6201,148.76,148.69,32.70179]
[1641481037708,66.6201,148.76,148.69,27.66479]
[1641481038511,66.6201,148.76,148.7,14.27132748]
[1641481040214,14.27132748,148.78,148.71,14.27132748]
[1641481041012,14.27132748,148.79,148.72,14.27132748]
[1641481042013,14.27132748,148.8,148.72,14.27132748]
[1641481042414,14.27132748,148.8,148.72,18.27132748]
[1641481042719,14.27132748,148.8,148.73,27.66479]
[1641481043112,14.27132748,148.8,148.73,41.93611748]
[1641481043813,14.27132748,148.8,148.73,27.66479]
[1641481044914,79.83502748,148.81,148.73,41.93611748]
[1641481045316,14.27132748,148.81,148.73,41.93611748]
[1641481045614,14.27132748,148.81,148.73,45.93611748]
[1641481045814,41.93611748,148.82,148.75,14.27132748]
[1641481047717,27.66479,148.82,148.75,14.27132748]
[1641481049620,41.93611748,148.82,148.75,14.27132748]
[1641481050921,14.27132748,148.81,148.73,41.93611748]
[1641481052223,14.27132748,148.8,148.73,41.93611748]
[1641481053224,14.27132748,148.8,148.73,27.66479]
[1641481053424,18.27132748,148.8,148.73,27.66479]
[1641481054626,4.0,148.76,148.73,27.66479]
[1641481054827,5.638,148.76,148.72,14.27132748]
[1641481055027,5.638,148.76,148.69,38.04818149]
[1641481055028,4.0,148.74,148.69,38.04818149]
[1641481055429,3.15142346,148.74,148.67,38.04818149]
[1641481055632,5.638,148.76,148.67,38.04818149]
[1641481055830,8.78942346,148.76,148.67,38.04818149]
[1641481056031,5.638,148.76,148.67,38.89675803]
[1641481056233,5.638,148.76,148.64,41.85355841]
[1641481056434,5.638,148.76,148.69,0.84857654]
[1641481056633,27.66479,148.74,148.69,0.84857654]
[1641481056834,27.66479,148.74,148.66,27.66479]
[1641481057133,27.66479,148.74,148.67,38.04818149]
[1641481057734,27.66479,148.74,148.69,0.84857654]
[1641481058535,30.81621346,148.79,148.69,0.84857654]
[1641481058736,27.66479,148.76,148.67,45.05933376]
[1641481058937,27.66479,148.76,148.7,0.84857654]
[1641481059238,27.66479,148.76,148.72,0.84857654]
[1641481059636,3.15142346,148.76,148.67,45.05933376]
[1641481060136,3.15142346,148.76,148.69,38.04818149]
[1641481060137,7.94742346,148.76,148.69,38.04818149]
[1641481060740,27.66479,148.74,148.69,38.04818149]
[1641481061139,27.66479,148.74,148.67,45.05933376]
[1641481061339,27.66479,148.74,148.68,0.84857654]
[1641481061639,27.66479,148.74,148.67,45.05933376]
[1641481062039,27.66479,148.74,148.68,0.84857654]
[1641481062739,27.66479,148.74,148.67,7.01115227]
[1641481063343,27.66479,148.74,148.7,0.84857654]
[1641481063540,27.66479,148.74,148.67,7.01115227]
[1641481064439,27.66479,148.74,148.67,45.05933376]
[1641481065240,33.66179,148.74,148.68,0.84857654]
[1641481065441,33.66179,148.74,148.67,45.05933376]
[1641481066045,33.66179,148.74,148.68,0.84857654]
[1641481066242,33.66179,148.74,148.67,45.05933376]
[1641481066443,33.66179,148.74,148.68,0.84857654]
[1641481067045,33.66179,148.74,148.67,7.01115227]
[1641481067245,33.66179,148.74,148.67,45.05933376]
[1641481067645,33.66179,148.74,148.68,0.84857654]
[1641481067846,33.66179,148.74,148.67,45.05933376]
[1641481068046,33.66179,148.74,148.67,7.01115227]
[1641481068848,33.66179,148.74,148.66,69.51801224]
[1641481069047,33.66179,148.74,148.67,1.43016864]
[1641481070854,33.66179,148.74,148.67,2.27874518]
[1641481071055,33.66179,148.74,148.67,1.43016864]
[1641481071257,33.66179,148.74,148.68,1.43016864]
[1641481071659,33.66179,148.74,148.68,2.27874518]
[1641481072056,33.66179,148.74,148.68,1.43016864]
[1641481072355,33.66179,148.74,148.67,1.43016864]
[1641481073456,33.66179,148.74,148.69,0.84857654]
[1641481073859,33.66179,148.74,148.68,0.84857654]
[1641481074057,33.66179,148.74,148.67,1.43016864]
[1641481074358,33.66179,148.74,148.68,0.84857654]
[1641481075257,33.66179,148.74,148.67,1.43016864]
[1641481075457,33.66179,148.74,148.69,1.43016864]
[1641481076157,33.66179,148.74,148.69,2.27874518]
[1641481076357,27.66479,148.74,148.73,0.84857654]
[1641481076759,27.66479,148.79,148.69,1.43016864]
[1641481077160,27.66479,148.79,148.73,0.84857654]
[1641481077357,27.66479,148.79,148.7,27.66479]
[1641481077757,27.66479,148.79,148.73,1.43016864]
[1641481078762,27.66479,148.79,148.74,0.84857654]
[1641481079162,3.31473613,148.78,148.74,0.84857654]
[1641481079860,3.31473613,148.78,148.75,1.43016864]
[1641481081562,4.75483213,148.77,148.76,4.75483213]
[1641481081763,9.67983213,148.77,148.76,4.75483213]
[1641481081963,12.83125559,148.77,148.71,7.01090069]
[1641481082162,3.15142346,148.76,148.71,0.00010069]
[1641481083363,27.66479,148.75,148.67,50.35085899]